Cogmind - Beta 16 @@@ ROGUE MODE // 2026.01.17 @ 15:57:03 Player: celerysam Result: Destroyed by S-27 Virus with Autogun Performance ------------- Evolutions (5) 2500 Regions Visited (12) 2400 Robots Destroyed (59) 295 Value Destroyed (1471) 1471 Prototype IDs (10) 200 Alien Tech Used (0) 0 Bonus (2007) 2007 TOTAL SCORE: 8873 Bonus ------- Follower Combat Kills 407 Entered Garrisons 600 Used RIF Installer 1000 Cogmind --------- Core Integrity 0/1000 Matter 131/300 Energy 9/100 System Corruption 13% Temperature Cool (0) Movement Hovering (70) Location -5/Factory Parts ------- > --- POWER (2) -------- (None) > --- PROPULSION (6) --- Gyrokinetic Inverter Gyrokinetic Inverter > --- UTILITY (6) ------ Improved Signal Interpreter Improved Target Analyzer Hardened Light Armor Plating Hacking Suite > --- WEAPON (3) ------- (None) > --- INVENTORY (5) ---- Advanced Cooling System Improved Matter Compressor (0) Improved Transmission Jammer Power Sword Peak State ------------ > --- POWER ------------ Improved Deuterium Engine Enhanced Fission Core > --- PROPULSION ------- Improved Gravmag System Antigrav System Gyrokinetic Inverter Gyrokinetic Inverter Improved VTOL Module Improved Cesium-ion Thruster > --- UTILITY ---------- Structural Scanner Advanced Sensor Array Improved Signal Interpreter Improved Target Analyzer ECM Suite Hacking Suite > --- WEAPON ----------- Arc Projector Magnetic Acceleration Cannon Shock Maul > --- INVENTORY -------- Advanced Cooling System Improved Matter Compressor Improved Transmission Jammer Hardened Light Armor Plating Power Sword [Rating: 78] Favorites ----------- Power Ion Engine Engine Ion Engine Power Core Enhanced Fission Core Propulsion Improved Cesium-ion Thruster Treads Light Treads Leg Aluminum Leg Wheel Compact Wheel Hover Unit Gyrokinetic Inverter Flight Unit Improved Cesium-ion Thruster Utility Medium Storage Unit Device Cooling System Storage Medium Storage Unit Processor Improved Target Analyzer Hackware Hacking Suite Protection Propulsion Shielding Weapon Autogun Energy Gun Improved Medium Laser Ballistic Gun Autogun Ballistic Cannon Magnetic Acceleration Cannon Launcher Mini Grenade Launcher Impact Weapon Shock Maul Slashing Weapon Scythe Special Melee Weapon Datajack Build | -11 -10 -9 -9 -8 -7 -6 -6 -6 -6 -5 -5 -5 ------- Run | Yrd Mat Mat Min Mat Fac Fac Gar Fac Gar Fac Gar Fac Slots Evolved 10 | . . 2 . 2 2 2 . . . 2 . . Power 1 | . . . . . 1 . . . . . . . Propulsion 4 | . . 1 . 1 1 1 . . . . . . Utility 4 | . . 1 . 1 . 1 . . . 1 . . Weapon 1 | . . . . . . . . . . 1 . . Parts Attached 90 | 6 8 9 2 20 5 1 . 3 1 8 6 21 Power 16 | 1 . 1 1 2 2 . . 2 . 1 1 5 Engine 12 | 1 . 1 1 2 2 . . 2 . 1 . 2 Core 4 | . . . . . . . . . . . 1 3 Reactor . | . . . . . . . . . . . . . Propulsion 28 | 2 2 5 . 8 1 1 . . . 2 2 5 Treads 1 | . . 1 . . . . . . . . . . Leg 2 | 2 . . . . . . . . . . . . Wheel 6 | . 2 4 . . . . . . . . . . Hover 8 | . . . . 3 . . . . . . . 5 Flight 11 | . . . . 5 1 1 . . . 2 2 . Utility 29 | 1 3 2 1 4 1 . . 1 1 4 3 8 Device 13 | . 1 1 . 2 . . . 1 . 1 1 6 Storage 5 | 1 1 . . . . . . . 1 1 . 1 Processor 2 | . . . . . . . . . . 1 1 . Hackware 2 | . . . . 1 . . . . . 1 . . Protection 7 | . 1 1 1 1 1 . . . . . 1 1 Artifact . | . . . . . . . . . . . . . Weapon 17 | 2 3 1 . 6 1 . . . . 1 . 3 Energy Gun 5 | 1 1 1 . 1 . . . . . . . 1 Energy Cannon . | . . . . . . . . . . . . . Ballistic Gun 4 | 1 2 . . 1 . . . . . . . . Ballistic Cannon 1 | . . . . . . . . . . . . 1 Launcher 1 | . . . . 1 . . . . . . . . Special Weapon . | . . . . . . . . . . . . . Impact Weapon 1 | . . . . . . . . . . . . 1 Slashing Weapon 3 | . . . . 3 . . . . . . . . Piercing Weapon . | . . . . . . . . . . . . . Special Melee Weapon 2 | . . . . . 1 . . . . 1 . . Unidentified Prototypes 10 | . . 1 . 3 . . . 1 . 1 . 4 Parts Lost 53 | . 1 3 3 5 4 . . 1 7 . 13 16 Power 12 | . . 1 1 . 2 . . . 2 . 1 5 Propulsion 18 | . . 2 1 2 . . . . 2 . 6 5 Utility 16 | . 1 . 1 2 2 . . 1 1 . 4 4 Weapon 7 | . . . . 1 . . . . 2 . 2 2 Highest Loss Streak 10 | . 1 2 2 4 4 . . 1 7 . 10 9 To Critical Strikes . | . . . . . . . . . . . . . Average Backups 7 | 4 7 9 9 9 9 9 10 10 10 9 9 4 Power . | . 1 . . . . . . . . . 1 . Propulsion 2 | 3 4 2 3 3 2 1 1 1 1 1 1 . Utility 3 | . . 2 2 3 5 6 7 7 7 7 6 2 Weapon 2 | . 1 3 4 2 2 2 2 2 2 . . 1 Tool/Special . | . . . . . . . . . . . . . Unused Backups 12 | . 1 1 . 4 . . . . . . 3 3 Power 1 | . . . . . . . . . . . 1 . Propulsion 2 | . . 1 . 1 . . . . . . . . Utility 5 | . . . . 1 . . . . . . 2 2 Weapon 4 | . 1 . . 2 . . . . . . . 1 Tool/Special . | . . . . . . . . . . . . . Average Slot Usage (%) 85 | . 94 97 98 82 92 80 78 83 77 70 83 78 Engine 7 | . 14 10 11 9 13 6 4 7 8 1 1 3 Core 1 | . . . . . . . . . . . 2 3 Leg 2 | . 18 . . . . . . . . . . . Wheel 8 | . 9 28 32 6 . . . . . . . . Hover 4 | . . . . 4 . . . . . . . 15 Flight 13 | . . . . 17 38 40 40 40 36 31 31 10 Device 8 | . . 11 11 11 13 . . 2 4 . . 15 Storage 8 | . 14 11 11 9 7 6 6 6 10 13 15 . Processor 3 | . . . . . . . . . . 1 5 11 Hackware 1 | . . . . . . . . . . 3 5 5 Protection 6 | . 8 10 10 12 7 13 13 13 6 5 4 . Energy Gun 4 | . 14 8 11 3 . . . . . . . 2 Ballistic Gun 4 | . 14 13 11 1 . . . . . . . . Slashing Weapon 2 | . . . . 6 7 6 6 6 5 5 4 2 Special Melee Weapon 1 | . . . . . 2 6 6 6 5 3 4 . Peak Build Rating 78 | 6 10 14 16 42 44 39 39 46 46 60 56 78 Average Rating 32 | 4 8 13 14 26 41 39 38 41 39 42 50 57 On Entrance 26 | . 6 10 14 15 36 35 39 38 45 24 54 27 Avg Prop Armor Cover (%) 3 | . . 8 . 10 . 2 2 3 2 5 1 3 Naked Turns . | . . . . . . . . . . . . . Heaviest Build 42 | 14 24 26 31 33 28 19 19 22 23 25 29 42 Greatest Support 48 | 20 32 48 36 26 28 27 33 39 39 28 32 43 Greatest Overweight (x) 1 | . 1 1 1 1 . . . . . . 1 1 Average Overweight (x) . | . . . . . . . . . . . . . Largest Inventory Capacity 10 | 8 10 10 10 10 10 10 10 10 10 10 10 5 Average Capacity 8 | 6 8 10 10 10 10 10 10 10 10 10 9 5 Most Carried 10 | 6 10 10 10 10 10 10 10 10 10 10 10 5 Average Carried 7 | 5 7 9 9 9 9 9 10 10 10 9 9 4 Final Capacity 10 | 8 10 10 10 10 10 10 10 10 10 10 5 5 Final Carried 10 | 6 10 10 10 10 10 10 10 10 10 10 5 4 Class Distribution -------------------- 45% | Mutant 25% | Sprinter 17% | Infiltrator-Ninja 3% | Infiltrator-Mutant 3% | Infiltrator-Sprinter Dominant Class ---------------- Mutant | -10/Materials Mutant | -9/Materials Mutant | -9/Mines Mutant | -8/Materials Sprinter | -7/Factory Sprinter | -6/Factory Sprinter | -6/Garrison Sprinter | -6/Factory Sprinter | -6/Garrison Sprinter | -5/Factory Scavenger-Sprinter | -5/Garrison Infiltrator-Ninja | -5/Factory Resources | -11 -10 -9 -9 -8 -7 -6 -6 -6 -6 -5 -5 -5 ----------- Run | Yrd Mat Mat Min Mat Fac Fac Gar Fac Gar Fac Gar Fac Matter Collected 1314 | 147 189 400 44 40 7 . . 41 . 119 210 117 Remotely . | . . . . . . . . . . . . . Salvage Created 1837 | . 463 750 80 166 18 . . 35 . 119 . 206 Parts 103 | . 20 51 4 9 3 . . 4 . 10 . 2 Haulers Intercepted 3 | . 2 1 . . . . . . . . . . Recyclers Shooed . | . . . . . . . . . . . . . Parts Field Recycled . | . . . . . . . . . . . . . Retrieved Matter . | . . . . . . . . . . . . . Parts Self-Destructed . | . . . . . . . . . . . . . Prevented . | . . . . . . . . . . . . . Parts Restored . | . . . . . . . . . . . . . Kills | -11 -10 -9 -9 -8 -7 -6 -6 -6 -6 -5 -5 -5 ------- Run | Yrd Mat Mat Min Mat Fac Fac Gar Fac Gar Fac Gar Fac Combat Hostiles Destroyed 38 | . 9 17 2 3 . . . . . . . 7 Melee 3 | . . . . . . . . . . . . 3 Guns 27 | . 8 17 2 . . . . . . . . . AOE 4 | . 1 . . 3 . . . . . . . . Classes Destroyed 11 | . 7 2 . 1 . . . . . . . 1 Worker 8 | . 1 . . . . . . 2 . 5 . . Hauler 3 | . 2 1 . . . . . . . . . . Recycler 1 | . 1 . . . . . . . . . . . Operator 4 | . 1 . . 1 1 . . . . 1 . . Watcher 5 | . 1 2 . 1 . . . . . . . 1 Swarmer 12 | . 3 3 . . . . . . . . . 6 Grunt 22 | . 6 12 2 2 . . . . . . . . Duelist 1 | . . 1 . . . . . . . . . . Sentry 1 | . . 1 . . . . . . . . . . Specialist 1 | . . . . 1 . . . . . . . . Programmer 1 | . . . . . . . . . . . . 1 Best Kill Streak 5 | . 4 5 2 3 1 . . 2 . 3 . 3 Combat Bots Only 5 | . 2 5 2 3 . . . . . . . 3 Max Kills in Single Turn 3 | . 2 2 2 3 1 . . 1 . 1 . 1 Gunslinging 1 | . . 1 1 . . . . . . . . . Exploded 3 | . 1 . . 3 . . . . . . . . Melee 1 | . . . . . . . . . . . . 1 Uniques/NPCs Destroyed . | . . . . . . . . . . . . . Combat | -11 -10 -9 -9 -8 -7 -6 -6 -6 -6 -5 -5 -5 -------- Run | Yrd Mat Mat Min Mat Fac Fac Gar Fac Gar Fac Gar Fac Hostile Shots Fired 635 | . 57 58 26 68 7 5 17 15 110 . 96 176 Missed 274 | . 11 17 8 29 3 1 14 9 71 . 40 71 Hits 361 | . 46 41 18 39 4 4 3 6 39 . 56 105 Melee 4 | . . . . . . 4 . . . . . . Projectile 357 | . 46 41 18 39 4 . 3 6 39 . 56 105 Critical Strikes 4 | . . . . 1 . . 1 . . . . 2 Damage Taken 5726 | . 474 477 189 717 384 67 84 67 367 . 1021 1879 Core 1610 | . 77 55 19 123 137 16 52 . 130 . 322 679 Absorbed by Shields 120 | . . . . . . . 8 . 19 . 93 . Redirected to Shielding 104 | . . . . 38 2 9 10 11 27 . 7 . Core Remaining (%) 80 | 100 69 . 81 77 80 . . . 76 . . . Volleys Fired 106 | . 43 41 6 12 . . . . . . . 4 Largest 2 | . 2 2 2 2 . . . . . . . 1 Hottest 88 | . 88 79 79 78 . . . . . . . 55 Shots Fired 200 | . 83 80 12 21 . . . . . . . 4 Gun 197 | . 83 80 12 19 . . . . . . . 3 Cannon 1 | . . . . . . . . . . . . 1 Launcher 2 | . . . . 2 . . . . . . . . Special . | . . . . . . . . . . . . . Kinetic 103 | . 43 44 6 9 . . . . . . . 1 Thermal 82 | . 40 36 6 . . . . . . . . . Explosive 2 | . . . . 2 . . . . . . . . Electromagnetic 13 | . . . . 10 . . . . . . . 3 Robot Hit Streak 9 | . 9 7 5 8 . . . . . . . . Robot Miss Streak 6 | . 6 3 2 3 . . . . . . . 4 Penetration Max . | . . . . . . . . . . . . . Secondary Targets 7 | . 2 4 1 . . . . . . . . . Max Gunslinging Chain 1 | . 1 1 1 . . . . . . . . . Shots Hit Robots 156 | . 43 55 9 20 1 2 . 2 . 8 5 11 Core Hits 70 | . 19 24 4 11 1 . . 2 . 5 . 4 Critical Kills 1 | . . . . . . . . . . . . 1 Critical Parts Destroyed 4 | . . . . 1 . . . . . . . 3 Critical Strikes 11 | . 3 2 . 1 . . . . . . . 5 Burn 5 | . 3 2 . . . . . . . . . . Destroy 1 | . . . . 1 . . . . . . . . Smash 4 | . . . . . . . . . . . . 4 Sever 1 | . . . . . . . . . . . . 1 Melee Attacks 110 | . . . . 24 7 7 . 2 . 21 6 43 Impact 30 | . . . . . . . . . . . . 30 Slashing 75 | . . . . 24 7 7 . 2 . 21 1 13 Piercing . | . . . . . . . . . . . . . Sneak Attacks 13 | . . . . 2 . . . 2 . 4 5 . Combat Hostiles . | . . . . . . . . . . . . . Follow-up Attacks . | . . . . . . . . . . . . . Damage Inflicted 4092 | . 900 929 139 903 57 68 . 156 . 418 . 522 Guns 1926 | . 650 929 139 208 . . . . . . . . Cannons . | . . . . . . . . . . . . . Explosions 635 | . 250 . . 385 . . . . . . . . Melee 1531 | . . . . 310 57 68 . 156 . 418 . 522 Ramming . | . . . . . . . . . . . . . Kinetic 887 | . 311 413 72 91 . . . . . . . . Thermal 922 | . 339 516 67 . . . . . . . . . Explosive 635 | . 250 . . 385 . . . . . . . . Electromagnetic 117 | . . . . 117 . . . . . . . . Impact 460 | . . . . . . . . . . . . 460 Slashing 1071 | . . . . 310 57 68 . 156 . 418 . 62 Piercing . | . . . . . . . . . . . . . Highest Corruption 13 | . . . . 4 . . . . . 4 5 13 Average Corruption 9 | . . . . 4 . . . . . 4 4 10 Corruption Purged . | . . . . . . . . . . . . . Corruption Blocked . | . . . . . . . . . . . . . Effects 35 | . . . . . . . . . . 2 2 31 Message Errors 8 | . . . . . . . . . . . 2 6 Matter Fused 9 | . . . . . . . . . . 2 . 7 Heat Flow Errors 4 | . . . . . . . . . . . . 4 Energy Discharges 8 | . . . . . . . . . . . . 8 Data Loss (minor) 2 | . . . . . . . . . . . . 2 Data Loss (major) 1 | . . . . . . . . . . . . 1 Alerts 2 | . . . . . . . . . . . . 2 Misdirections 1 | . . . . . . . . . . . . 1 Overload Shots . | . . . . . . . . . . . . . Overflow Damage 264 | . 4 . . . . . . . . 52 . 208 Projectiles . | . . . . . . . . . . . . . Explosions 4 | . 4 . . . . . . . . . . . Melee 260 | . . . . . . . . . . 52 . 208 Knockbacks . | . . . . . . . . . . . . . Impact . | . . . . . . . . . . . . . Kinetic . | . . . . . . . . . . . . . Secondary . | . . . . . . . . . . . . . Self-Inflicted Damage . | . . . . . . . . . . . . . Shots . | . . . . . . . . . . . . . Rammed . | . . . . . . . . . . . . . Targets Rammed . | . . . . . . . . . . . . . Kicked . | . . . . . . . . . . . . . Crushed . | . . . . . . . . . . . . . Highest Temperature 458 | . 458 12 6 4 30 . 73 66 37 . 83 192 Average Temperature 82 | . 133 4 3 3 11 . 40 24 15 . 37 63 Received Heat Transfer 1044 | . 213 228 84 225 9 . 9 12 99 . 93 72 Effects 2 | . 2 . . . . . . . . . . . Interference 1 | . 1 . . . . . . . . . . . Damage (major) 1 | . 1 . . . . . . . . . . . Siege Activations . | . . . . . . . . . . . . . Martial Activations . | . . . . . . . . . . . . . Shielding Activations . | . . . . . . . . . . . . . Robots Disrupted . | . . . . . . . . . . . . . Combat Hostiles . | . . . . . . . . . . . . . Robots Corrupted 4 | . . . . . . . . . . . . 4 Combat Hostiles 4 | . . . . . . . . . . . . 4 Parts Fried 5 | . . . . 2 . . . . . . . 3 Impact Corruptions 9 | . . . . . . . . . . . . 9 Robots Melted . | . . . . . . . . . . . . . Combat Hostiles . | . . . . . . . . . . . . . Parts Melted 3 | . 2 1 . . . . . . . . . . Heat Transferred 2479 | . 1073 1258 148 . . . . . . . . . Parts Sabotaged . | . . . . . . . . . . . . . Parts Stolen . | . . . . . . . . . . . . . Parts Stripped . | . . . . . . . . . . . . . Power Chain Reactions . | . . . . . . . . . . . . . Alert | -11 -10 -9 -9 -8 -7 -6 -6 -6 -6 -5 -5 -5 ------- Run | Yrd Mat Mat Min Mat Fac Fac Gar Fac Gar Fac Gar Fac Maximum Alert Level 2 | . . 1 . . . . . . . . 2 1 Low Security (%) 90 | 100 100 96 100 100 100 100 100 100 100 100 30 80 Level 1 6 | . . 3 . . . . . . . . 14 19 Level 2 2 | . . . . . . . . . . . 54 . Level 3 . | . . . . . . . . . . . . . Level 4 . | . . . . . . . . . . . . . Level 5 . | . . . . . . . . . . . . . High Security . | . . . . . . . . . . . . . Max Security . | . . . . . . . . . . . . . Peak Influence 525 | . 130 218 191 181 97 27 30 30 155 98 525 261 Initial 256 | . . 50 81 46 73 25 . 15 7 81 45 256 Average 103 | . 65 75 135 58 78 13 14 23 26 78 322 152 Influence Increases 2603 | . 300 412 190 334 71 4 30 25 180 84 635 338 Destroy 0b10 Robot/C 1140 | . 180 340 160 60 . . . . . . 260 140 Destroy 0b10 Robot/NC 105 | . 30 15 . 10 5 . . 10 . 30 . 5 Destroy Leader 156 | . 36 56 20 22 . . . . . . 10 12 Allied During Kill 53 | . . . 10 . . . . . . . 43 . Successful Hack 6 | . . . . 6 . . . . . . . . Disable Machine 45 | . 15 . . 15 . . . . . . . 15 Destroy Structure 123 | . 9 1 . 26 6 4 . . . 24 7 46 Partial Spotted 285 | . . . . 45 45 . . 15 . 30 90 60 Lose Combat Pursuer 690 | . 30 . . 150 15 . 30 . 180 . 225 60 Influence Decreases 2525 | . 180 322 279 292 180 58 . 45 35 174 210 750 Entered New Map 739 | . . 70 129 75 90 29 . 15 3 74 20 234 Time Decay 1224 | . 170 222 100 177 50 29 . 20 . 100 . 356 Lost Part 462 | . 10 30 30 20 40 . . 10 32 . 130 160 Lost Ally 100 | . . . 20 20 . . . . . . 60 . Squads Dispatched 13 | . 1 . 2 3 . 2 . . . 1 . 4 Investigation 3 | . 1 . . . . 1 . . . 1 . . Extermination 2 | . . . . . . . . . . . . 2 Reinforcement 6 | . . . . 3 . 1 . . . . . 2 Assault 2 | . . . 2 . . . . . . . . . Garrison . | . . . . . . . . . . . . . Intercept . | . . . . . . . . . . . . . Searches Triggered . | . . . . . . . . . . . . . Construction Impeded . | . . . . . . . . . . . . . Haulers Reinforced . | . . . . . . . . . . . . . Active Scanning Responses . | . . . . . . . . . . . . . Cargo Convoy Interrupts . | . . . . . . . . . . . . . Stealth | -11 -10 -9 -9 -8 -7 -6 -6 -6 -6 -5 -5 -5 --------- Run | Yrd Mat Mat Min Mat Fac Fac Gar Fac Gar Fac Gar Fac Distress Signals 4 | . 2 . . 2 . . . . . . . . Communications Jammed . | . . . . . . . . . . . . . Distress Signals . | . . . . . . . . . . . . . Times Spotted 197 | . 14 22 11 23 9 5 4 7 24 4 37 37 Peak Tracking Total 20 | . 6 5 4 10 8 5 3 8 20 4 15 7 Tactical Retreats 26 | . 2 . . 3 1 . 1 . 2 . 4 13 ECM-based Alert Blocks 16 | . . . . . . . . . . . . 16 Traps | -11 -10 -9 -9 -8 -7 -6 -6 -6 -6 -5 -5 -5 ------- Run | Yrd Mat Mat Min Mat Fac Fac Gar Fac Gar Fac Gar Fac Traps Triggered 16 | . 1 . . . 2 1 2 . 2 . 7 1 Indirectly . | . . . . . . . . . . . . . Trap Hack Attempts . | . . . . . . . . . . . . . Triggered . | . . . . . . . . . . . . . Disarmed . | . . . . . . . . . . . . . Reprogrammed . | . . . . . . . . . . . . . Reused . | . . . . . . . . . . . . . Traps Extracted . | . . . . . . . . . . . . . Installed . | . . . . . . . . . . . . . Triggered . | . . . . . . . . . . . . . Machines | -11 -10 -9 -9 -8 -7 -6 -6 -6 -6 -5 -5 -5 ---------- Run | Yrd Mat Mat Min Mat Fac Fac Gar Fac Gar Fac Gar Fac Machines Disabled 3 | . 1 . . 1 . . . . . . . 1 Max in Single Turn 1 | . 1 . . 1 . . . . . . . 1 Machines Repaired . | . . . . . . . . . . . . . Machines Dismantled . | . . . . . . . . . . . . . Machines Sabotaged . | . . . . . . . . . . . . . Overloaded Fab Kills . | . . . . . . . . . . . . . Hacking | -11 -10 -9 -9 -8 -7 -6 -6 -6 -6 -5 -5 -5 --------- Run | Yrd Mat Mat Min Mat Fac Fac Gar Fac Gar Fac Gar Fac Machines Accessed 9 | . . . . 4 . 2 . 1 . 2 . . Terminals 3 | . . . . 2 . 1 . . . . . . Fabricators 1 | . . . . . . . . . . 1 . . Repair Stations . | . . . . . . . . . . . . . Recycling Units . | . . . . . . . . . . . . . Scanalyzers 2 | . . . . 2 . . . . . . . . Garrison Access 3 | . . . . . . 1 . 1 . 1 . . Total Hacks 15 | . . . . 8 . 3 . 1 . 3 . . Successful 12 | . . . . 7 . 1 . 1 . 3 . . Failed 3 | . . . . 1 . 2 . . . . . . Catastrophic . | . . . . . . . . . . . . . Database Lockouts . | . . . . . . . . . . . . . Manual 5 | . . . . 3 . 2 . . . . . . Terminals 5 | . . . . 3 . 2 . . . . . . Fabricators 2 | . . . . . . . . . . 2 . . Repair Stations . | . . . . . . . . . . . . . Recycling Units . | . . . . . . . . . . . . . Scanalyzers 5 | . . . . 5 . . . . . . . . Garrison Access 3 | . . . . . . 1 . 1 . 1 . . Terminal Hacks . | . . . . . . . . . . . . . Fabricator Hacks 2 | . . . . . . . . . . 2 . . Load Schematic 1 | . . . . . . . . . . 1 . . Build 1 | . . . . . . . . . . 1 . . Repair Station Hacks . | . . . . . . . . . . . . . Recycling Unit Hacks . | . . . . . . . . . . . . . Scanalyzer 5 | . . . . 5 . . . . . . . . Insert Component 1 | . . . . 1 . . . . . . . . Analyze 1 | . . . . 1 . . . . . . . . Retrieve Study 3 | . . . . 3 . . . . . . . . Garrison Access Hacks 3 | . . . . . . 1 . 1 . 1 . . Unlock Access 3 | . . . . . . 1 . 1 . 1 . . Unauthorized Hacks 2 | . . . . 2 . . . . . . . . Terminals 2 | . . . . 2 . . . . . . . . Assimilate 2 | . . . . 2 . . . . . . . . Fabricators . | . . . . . . . . . . . . . Repair Stations . | . . . . . . . . . . . . . Recycling Units . | . . . . . . . . . . . . . Scanalyzers . | . . . . . . . . . . . . . Garrison Access . | . . . . . . . . . . . . . Data Cores Recovered 3 | . 1 . . . 1 . . . . 1 . . Used . | . . . . . . . . . . . . . Hacking Detections 5 | . . . . 2 . 2 . . . 1 . . Full Trace Events 2 | . . . . . . 1 . . . 1 . . Feedback Events . | . . . . . . . . . . . . . Feedback Blocked . | . . . . . . . . . . . . . Robot Schematics Acquired . | . . . . . . . . . . . . . Robots Built . | . . . . . . . . . . . . . Authchips . | . . . . . . . . . . . . . Time . | . . . . . . . . . . . . . Total Robot Build Rating . | . . . . . . . . . . . . . Part Schematics Acquired 1 | . . . . 1 . . . . . . . . Parts Built 1 | . . . . . . . . . . 1 . . Authchips . | . . . . . . . . . . . . . Time 116 | . . . . . . . . . . 116 . . Total Part Build Rating 3 | . . . . . . . . . . 3 . . Part Studies Acquired 3 | . . . . 3 . . . . . . . . Parts Repaired . | . . . . . . . . . . . . . Time . | . . . . . . . . . . . . . Parts Recycled . | . . . . . . . . . . . . . Recycled Matter . | . . . . . . . . . . . . . Retrieved Matter . | . . . . . . . . . . . . . Retrieved Components . | . . . . . . . . . . . . . Parts Scanalyzed 1 | . . . . 1 . . . . . . . . Part Schematics Acquired 1 | . . . . 1 . . . . . . . . Parts Damaged . | . . . . . . . . . . . . . Bothacking | -11 -10 -9 -9 -8 -7 -6 -6 -6 -6 -5 -5 -5 ------------ Run | Yrd Mat Mat Min Mat Fac Fac Gar Fac Gar Fac Gar Fac Used RIF Installer 2 | . . . . . . . 1 . 1 . . . Patrol Navigation 1 | . . . . . . . . . 1 . . . Robots Hacked . | . . . . . . . . . . . . . Non-combat . | . . . . . . . . . . . . . Combat . | . . . . . . . . . . . . . Robot Hacks Applied . | . . . . . . . . . . . . . Relay Couplers Released . | . . . . . . . . . . . . . Fabnet Peak Effective % . | . . . . . . . . . . . . . Robots Rewired 3 | . . . . . . . . . . . 3 . Allies Hacked . | . . . . . . . . . . . . . Hacks Repelled . | . . . . . . . . . . . . . Allies | -11 -10 -9 -9 -8 -7 -6 -6 -6 -6 -5 -5 -5 -------- Run | Yrd Mat Mat Min Mat Fac Fac Gar Fac Gar Fac Gar Fac Total Allies 6 | . . . 1 2 . . . . . . 3 . Largest Group 3 | . . . 1 1 . . . . . . 3 . Highest-Rated Group 123 | . . . 31 10 . . . . . . 123 . Highest-Rated Ally 41 | . . . 31 10 . . . . . . 41 . Total Orders . | . . . . . . . . . . . . . Ally Attacks 65 | . . . 31 . . . . . . . 34 . Total Damage 1921 | . . . 371 . . . . . . . 1550 . Kills 19 | . . . 6 . . . . . . . 13 . Allies Corrupted . | . . . . . . . . . . . . . Allies Melted . | . . . . . . . . . . . . . Intel | -11 -10 -9 -9 -8 -7 -6 -6 -6 -6 -5 -5 -5 ------- Run | Yrd Mat Mat Min Mat Fac Fac Gar Fac Gar Fac Gar Fac Active Infowar (turns) 747 | . . . . 2 . . . . . . 3 742 Sensors 512 | . . . . 2 . . . . . . 3 507 Structural 738 | . . . . . . . . . . . . 738 Jamming 32 | . . . . . . . . . . . . 32 ECM 712 | . . . . . . . . . . . . 712 Robot Analysis Total . | . . . . . . . . . . . . . Derelict Logs Recovered 1 | . . . 1 . . . . . . . . . Drone Launches . | . . . . . . . . . . . . . Drone Recoveries . | . . . . . . . . . . . . . Exploration | -11 -10 -9 -9 -8 -7 -6 -6 -6 -6 -5 -5 -5 ------------- Run | Yrd Mat Mat Min Mat Fac Fac Gar Fac Gar Fac Gar Fac Turns Passed 3125 | 85 383 476 207 441 106 73 60 40 61 209 170 814 Spaces Moved 4351 | 69 217 333 152 721 346 183 157 123 233 363 342 1112 Core 17 | 17 . . . . . . . . . . . . Treads . | . . . . . . . . . . . . . Legs 186 | 52 134 . . . . . . . . . . . Wheels 660 | . 83 333 152 92 . . . . . . . . Hover 999 | . . . . 74 . . . . . . . 925 Flight 2489 | . . . . 555 346 183 157 123 233 363 342 187 Fastest Speed 20 | 50 100 86 86 26 23 23 20 20 23 24 21 32 Average Speed 48 | 102 112 100 87 40 23 23 21 23 23 26 24 54 Slowest Speed 120 | 120 120 115 105 112 23 23 26 26 26 30 99 106 Overloaded Moves . | . . . . . . . . . . . . . Propulsion Burnouts . | . . . . . . . . . . . . . Robots Hopped 19 | . . . . 2 3 1 . . 4 . 8 1 Potential Cave-ins 6 | . . . . . . . . . . . . 6 Cave-ins Triggered 1 | . . . . 1 . . . . . . . . Exploration Rate (%) 28 | 4 59 31 48 66 13 5 30 6 33 9 35 33 Regions Visited 12 Branch Regions 1 Pre-discovered Areas . | . . . . . . . . . . . . . Known Exits Taken 3 | . . . . . . 1 . 1 . 1 . . Unknown Exits Taken 6 | 1 1 1 1 1 1 . . . . . . . Scrap Searched 1 | . . . 1 . . . . . . . . . Spaces Dug 66 | . . . . 16 6 4 . . . 12 . 28 Terrain Destroyed 90 | . 9 . . 30 6 4 . . . 12 . 29 Melee 66 | . . . . 16 6 4 . . . 12 . 28 Projectile 1 | . . . . . . . . . . . . 1 AOE 23 | . 9 . . 14 . . . . . . . . Terrain Rammed . | . . . . . . . . . . . . . Walls Destroyed . | . . . . . . . . . . . . . Machines Disabled . | . . . . . . . . . . . . . Actions | -11 -10 -9 -9 -8 -7 -6 -6 -6 -6 -5 -5 -5 --------- Run | Yrd Mat Mat Min Mat Fac Fac Gar Fac Gar Fac Gar Fac Total 4998 | 80 281 405 215 821 357 202 181 130 232 441 417 1236 Wait 144 | . . 10 54 . . . 3 2 . 40 2 33 Move 4307 | 68 216 332 151 716 340 181 156 123 224 363 327 1110 Hop 15 | . . . . 2 2 1 . . 3 . 6 1 Pick Up 67 | 6 8 8 2 16 3 1 . . . 5 4 14 Fast Attach 35 | 6 2 1 . 7 2 . . 3 1 5 3 5 Attach 49 | . 2 5 2 12 3 1 . . . 5 4 15 Detach 9 | . . . . 7 . . . . . . 1 1 Swap 21 | . 4 3 . 8 . . . . . 1 . 5 Drop 38 | . 6 5 . 17 . . . . . 1 4 5 Fire 106 | . 43 41 6 12 . . . . . . . 4 Melee 110 | . . . . 24 7 7 . 2 . 21 6 43 Ram . | . . . . . . . . . . . . . Kick . | . . . . . . . . . . . . . Crush . | . . . . . . . . . . . . . Escape Stasis 97 | . . . . . . 11 22 . 4 . 60 . Rewire . | . . . . . . . . . . . . . Trap . | . . . . . . . . . . . . . Miscellaneous . | . . . . . . . . . . . . . Route ------- -11/Scrapyard -10/Materials -9/Materials (discovered 2 exits: *Mat / [*Min]) -9/Mines (discovered 2 exits: *Mat x2) -8/Materials -7/Factory -6/Factory -6/Garrison -6/Factory -6/Garrison -5/Factory (discovered 2 exits: [*Fac] / Gar) -5/Garrison -5/Factory History --------- Turn | Location | Event 6 | -11/Scrapyard | Discovered new exit (range 15) 86 | -11/Scrapyard | Entered Materials 313 | -10/Materials | Build established: Mutant 418 | -10/Materials | Discovered new exit (range 7) 469 | -10/Materials | Entered another Materials area 469 | -9/Materials | Evolved 2 slots: Propulsion x1, Utility x1 649 | -9/Materials | Discovered new exit (range 5) 810 | -9/Materials | Discovered new exit (range 15) 945 | -9/Materials | Entered Mines 946 | -9/Mines | Met a Derelict testing a Signal Generator 1122 | -9/Mines | Found a damaged Exp. Sensor Array with a note attached 1123 | -9/Mines | Found Prototype Device 1140 | -9/Mines | Discovered new exit (range 16) 1141 | -9/Mines | Learned Materials trap positions 1141 | -9/Mines | Discovered new exit (range 12) 1152 | -9/Mines | Entered Materials 1152 | -8/Materials | Evolved 2 slots: Propulsion x1, Utility x1 1153 | -8/Materials | Loaded intel: 22 trap records 1406 | -8/Materials | Lost 4 parts (2n1u1w) 1481 | -8/Materials | Crushed by falling debris 1496 | -8/Materials | Identified Exp. Sensor Array 1584 | -8/Materials | Discovered new exit (range 6) 1593 | -8/Materials | Entered Factory 1593 | -7/Factory | Evolved 2 slots: Power x1, Propulsion x1 1671 | -7/Factory | Build established: Sprinter 1676 | -7/Factory | Discovered new exit (range 15) 1699 | -7/Factory | Entered another Factory area 1699 | -6/Factory | Evolved 2 slots: Propulsion x1, Utility x1 1711 | -6/Factory | Lost 4 parts (2p2u) 1772 | -6/Factory | Identified exit to Garrison 1772 | -6/Factory | Entered Garrison 1780 | -6/Garrison | Triggered checkpoint 1786 | -6/Garrison | Spotted B-75 Beast 1824 | -6/Garrison | Triggered checkpoint 1825 | -6/Garrison | Discovered new exit (range 13) 1827 | -6/Garrison | Installed Relay Interface Framework 1832 | -6/Garrison | Entered Factory 1872 | -6/Factory | Identified exit to Garrison 1872 | -6/Factory | Entered Garrison 1878 | -6/Garrison | Expanded RIF knowledge: Patrol Navigation 1880 | -6/Garrison | Triggered checkpoint 1894 | -6/Garrison | Triggered checkpoint 1914 | -6/Garrison | Triggered checkpoint 1914 | -6/Garrison | Triggered checkpoint 1926 | -6/Garrison | Triggered checkpoint 1931 | -6/Garrison | Discovered new exit (range 10) 1933 | -6/Garrison | Entered Factory 1933 | -5/Factory | Evolved 2 slots: Utility x1, Weapon x1 1960 | -5/Factory | Lost 7 parts (2p2n1u2w) 2061 | -5/Factory | Fabricated Imp. VTOL Module? 2122 | -5/Factory | Discovered new exit (range 15) 2141 | -5/Factory | Identified exit to Garrison 2142 | -5/Factory | Entered Garrison 2153 | -5/Garrison | Spotted B-75 Beast 2178 | -5/Garrison | Triggered checkpoint 2180 | -5/Garrison | Triggered checkpoint 2198 | -5/Garrison | Lost 3 parts (2n1u) 2218 | -5/Garrison | Triggered checkpoint 2258 | -5/Garrison | Triggered checkpoint 2282 | -5/Garrison | Triggered checkpoint 2284 | -5/Garrison | Discovered new exit (range 14) 2294 | -5/Garrison | Triggered checkpoint 2306 | -5/Garrison | Triggered checkpoint 2312 | -5/Garrison | Identified exit to Factory 2312 | -5/Garrison | Entered Factory 2323 | -5/Factory | System corruption reached 10% 2337 | -5/Factory | Lost 10 parts (1p4n3u2w) 2812 | -5/Factory | Build established: Infiltrator-Ninja 2860 | -5/Factory | Core integrity fell below 50% 2897 | -5/Factory | Lost 4 parts (1p2n1w) 3084 | -5/Factory | Core integrity fell below 20% 3126 | -5/Factory | Destroyed by S-27 Virus with Autogun Last Messages --------------- 03091_ Structural Scanner destroyed. 03102_ Destroyed VTOL Module. 03102_ Destroyed Lgt. Nuclear Core. 03102_ S-27 Virus system corrupted by crushing effect. 03103_ S-27 Virus system terminally corrupted. 03103_ Autogun fried. 03105_ Acquired 25 matter. 03106_ ALERT: Hostiles spotted, dispatching reinforcements to Terminal F012. 03107_ K-01 Serf collects debris. 03109_ Acquired 23 matter. 03111_ Acquired Lgt. Ion Engine. 03111_ K-01 Serf collects debris. 03114_ Lgt. Ion Engine destroyed. 03115_ Shock Maul destroyed. 03115_ Gyrokinetic Inverter destroyed. 03116_ ECM Suite destroyed. 03124_ System corrupted: IFF burst signal emitted. Map ----- +----------------------------------------------------+ | ????????????????? "" "" ###############/#### | | ??????????????????""" """ #? # | | ??????????????????""" """ #??????????? ?? ### | | ???????????? """ """ #?????????? ?? ### | | ???????????? #????????? ?????? | | ?????????????? "" "" #???????? ?????? | | ????????????????? "" "" #?????? ?????? | | ??????????????????""" """ #????? ??????? | | ??????????????????""" """ #???? ?????? | | ?????????????? """ """ ###############+#### ? | | ????????????? ! | | ????????????? | | ????????????? !! [ | | ????????????? ! | | ?????????????? ### ^ | | ?????????????? ???# | | ????????????????????# """"""? | | ????????????????????##############g##### | | ???????????????????????# s s # """"""? | | ???????????????????????# s R #? ???? | | ???????????????????????# s s #??!% ??? | | ???????????????????????# #???% ??? | | ???????????????????????# #??? ???? | | ???????????????????????# #?????????? | | ???????????????????? + k #?????????? | | ???????????????????##### @ #?????????? | | ???????????????????????# k #?????????? | | ???????????????????????# #?????????? | | ???????????????????????##+########+#####?????????? | | ?????????????????????????????????????????????????? | | ?????????????????????????????????????????????????? | | ?????????????????????????????????????????????????? | | ?????????????????????????????????????????????????? | | ?????????????????????????????????????????????????? | | ?????????????????????????????????????????????????? | | ?????????????????????????????????????????????????? | | ?????????????????????????????????????????????????? | | ?????????????????????????????????????????????????? | | ?????????????????????????????????????????????????? | | ?????????????????????????????????????????????????? | | ?????????????????????????????????????????????????? | | ?????????????????????????????????????????????????? | | ?????????????????????????????????????????????????? | | ?????????????????????????????????????????????????? | | ?????????????????????????????????????????????????? | | ?????????????????????????????????????????????????? | | ?????????????????????????????????????????????????? | | ?????????????????????????????????????????????????? | | ?????????????????????????????????????????????????? | | ?????????????????????????????????????????????????? | +----------------------------------------------------+ Best States ------------- Heat Dissipation 56 Energy Generation 34 Energy Capacity 660 Matter Stores 300 Matter Capacity 300 Sight Range 16 Robot Scan Range 16 Terrain Scan Density 10 ECM Strength 1 Jamming Range 14 Additional Mass Support 12 Armor Coverage 150 Propulsion Shielding 33 Evasion (%) 73 Target Analysis 6 Offensive Hacking 10 Defensive Hacking 10 Item Schematics ----------------- Imp. VTOL Module | -8/Materials | Scanalyzed Robot Schematics ------------------ None Fabricated ------------ Imp. VTOL Module | x1 | -5/Factory Repaired ---------- Nothing Studied --------- Imp. Hover Unit | -8/Materials | Hacked Airjet | -8/Materials | Hacked Lgt. Deuterium Engine | -8/Materials | Hacked Alien Tech Used ----------------- None Achievements -------------- Let Me Out Of Here Challenges ------------ None Game ------ Seed PowerAnalysisCycler Manual? 0 Play Time 01:09:09 Cumulative 288.8 hours Start 2026.01.17 @ 14:37:02 End 2026.01.17 @ 15:57:03 Sessions 1 Manual Loads 0 Difficulty Rogue Special Mode None Game No. 454 Rogue 454 Adventurer 0 Explorer 0 Win Type - Total 1 Types 1/0/0/0/0/0/0/0/0/0 Lore% 65 Gallery% 63 Achievement% 31 Wizard Run 0 Options --------- Layout 1 ASCII 0 Keyboard 0 Movement Mouse Keybinds 0 Fullscreen 2 Font 24/Smallcaps Map View 50x35 Zoom Use 0% Tactical HUD 1 Map Filters NONE Filters NONE Steam 1 RUN: d6063fa1-b82c-4ae8-8ee1-2efa9bb401a9